[Event "Late-Titled-Tuesday-Blitz-August-29-2023"]
[Site "Chess.com"]
[Date "2023.08.29"]
[Round "8"]
[White "vladislavkovalev"]
[Black "BillieKimbah"]
[Result "0-1"]
[WhiteElo "2926"]
[BlackElo "3054"]
[TimeControl "180+1"]
[EndTime "15:28:21 PDT"]
[Termination "BillieKimbah won by resignation"]

1. d4 {[%clk 0:03:00.9]} 1... Nf6 {[%clk 0:02:59.3]} 2. Nf3 {[%clk 0:03:01.4]}
2... d5 {[%clk 0:02:59.5]} 3. Bf4 {[%clk 0:03:01.7]} 3... c5 {[%clk 0:02:58.6]}
4. e3 {[%clk 0:03:01.9]} 4... Nc6 {[%clk 0:02:58.8]} 5. Nbd2 {[%clk 0:03:01.2]}
5... e6 {[%clk 0:02:56.6]} 6. c3 {[%clk 0:03:01]} 6... Be7 {[%clk 0:02:57]} 7.
h3 {[%clk 0:02:58]} 7... Bd6 {[%clk 0:02:57.1]} 8. dxc5 {[%clk 0:02:45.9]} 8...
Bxc5 {[%clk 0:02:56.1]} 9. Bd3 {[%clk 0:02:46.6]} 9... Bd6 {[%clk 0:02:55]} 10.
Bxd6 {[%clk 0:02:42.5]} 10... Qxd6 {[%clk 0:02:55.9]} 11. Qe2 {[%clk 0:02:40.9]}
11... O-O {[%clk 0:02:48]} 12. e4 {[%clk 0:02:38.3]} 12... dxe4 {[%clk
0:02:42.6]} 13. Nxe4 {[%clk 0:02:39.2]} 13... Qe7 {[%clk 0:02:38.5]} 14. O-O-O
{[%clk 0:02:23.7]} 14... Nd5 {[%clk 0:02:32.5]} 15. Bc2 {[%clk 0:02:23.3]} 15...
Rd8 {[%clk 0:02:29.2]} 16. Rhe1 {[%clk 0:02:07.3]} 16... b6 {[%clk 0:02:08.1]}
17. g3 {[%clk 0:01:50.5]} 17... Bb7 {[%clk 0:02:07.5]} 18. h4 {[%clk 0:01:51]}
18... Rac8 {[%clk 0:02:02.1]} 19. Kb1 {[%clk 0:01:44.4]} 19... h6 {[%clk
0:01:57]} 20. h5 {[%clk 0:01:14.8]} 20... Rc7 {[%clk 0:01:54.2]} 21. Ned2 {[%clk
0:00:39.6]} 21... Rcd7 {[%clk 0:01:43.2]} 22. Nb3 {[%clk 0:00:38.3]} 22... Nf6
{[%clk 0:01:32.2]} 23. Rxd7 {[%clk 0:00:36.8]} 23... Rxd7 {[%clk 0:01:33.1]} 24.
Nfd4 {[%clk 0:00:35]} 24... Nxd4 {[%clk 0:01:30.3]} 25. Nxd4 {[%clk 0:00:35.9]}
25... Qc5 {[%clk 0:01:18.9]} 26. g4 {[%clk 0:00:32.7]} 26... Bd5 {[%clk
0:01:02.7]} 27. f4 {[%clk 0:00:30.1]} 27... Bc4 {[%clk 0:01:01.1]} 28. Qf3
{[%clk 0:00:24.8]} 28... Qd5 {[%clk 0:00:57.4]} 29. Qxd5 {[%clk 0:00:10.9]}
29... Bxd5 {[%clk 0:00:54.5]} 30. Rg1 {[%clk 0:00:10.4]} 30... Kf8 {[%clk
0:00:51.3]} 31. b3 {[%clk 0:00:09.6]} 31... a6 {[%clk 0:00:47.7]} 32. Kb2 {[%clk
0:00:10.2]} 32... b5 {[%clk 0:00:47.8]} 33. Rg3 {[%clk 0:00:05.5]} 33... Bb7
{[%clk 0:00:47.8]} 34. Rg1 {[%clk 0:00:05.2]} 34... Nd5 {[%clk 0:00:48.1]} 35.
Rf1 {[%clk 0:00:05]} 35... b4 {[%clk 0:00:48.4]} 36. cxb4 {[%clk 0:00:03.6]}
36... Nxb4 {[%clk 0:00:49.3]} 37. Rd1 {[%clk 0:00:03.1]} 37... Nd5 {[%clk
0:00:43.2]} 38. f5 {[%clk 0:00:02.1]} 38... e5 {[%clk 0:00:37.9]} 39. Nf3 {[%clk
0:00:02.8]} 39... f6 {[%clk 0:00:32.1]} 40. Be4 {[%clk 0:00:03.4]} 40... Ke7
{[%clk 0:00:32.5]} 41. Nh4 {[%clk 0:00:04.2]} 41... Ke8 {[%clk 0:00:28]} 42. Ng6
{[%clk 0:00:03.9]} 42... Rd6 {[%clk 0:00:26]} 43. b4 {[%clk 0:00:02.6]} 43...
Kd7 {[%clk 0:00:26.4]} 44. Kb3 {[%clk 0:00:01.7]} 44... Bc6 {[%clk 0:00:21.5]}
45. Nf8+ {[%clk 0:00:02.4]} 45... Ke7 {[%clk 0:00:18.2]} 46. Ne6 {[%clk
0:00:03.2]} 46... Ba4+ {[%clk 0:00:18.2]} 47. Kxa4 {[%clk 0:00:03]} 47... Nc3+
{[%clk 0:00:18.7]} 48. Ka5 {[%clk 0:00:03.9]} 48... Rxd1 {[%clk 0:00:15.3]} 49.
Bb7 {[%clk 0:00:03.5]} 49... Nxa2 {[%clk 0:00:15]} 50. Bxa6 {[%clk 0:00:02.9]}
50... Ra1 {[%clk 0:00:15.2]} 51. Kb5 {[%clk 0:00:01.5]} 51... Nxb4 {[%clk
0:00:14.8]} 52. Bb7 {[%clk 0:00:02.4]} 52... Nc2 {[%clk 0:00:14.5]} 53. Nxg7
{[%clk 0:00:02.7]} 53... Rb1+ {[%clk 0:00:13.8]} 54. Ka6 {[%clk 0:00:03.4]}
54... Ra1+ {[%clk 0:00:12.5]} 55. Kb6 {[%clk 0:00:03.5]} 55... Rb1+ {[%clk
0:00:13.1]} 56. Kc7 {[%clk 0:00:04.1]} 56... Nd4 {[%clk 0:00:13.7]} 57. Bd5
{[%clk 0:00:02.6]} 57... Rc1+ {[%clk 0:00:13.6]} 58. Kb6 {[%clk 0:00:02.7]}
58... Rg1 {[%clk 0:00:13]} 59. Ne6 {[%clk 0:00:01.8]} 59... Nxe6 {[%clk
0:00:12.9]} 60. fxe6 {[%clk 0:00:02.7]} 60... Rxg4 {[%clk 0:00:13.2]} 0-1

[Event "Late-Titled-Tuesday-Blitz-August-29-2023"]
[Site "Chess.com"]
[Date "2023.08.29"]
[Round "8"]
[White "Nf3c5"]
[Black "Bilan_Danila"]
[Result "1/2-1/2"]
[WhiteElo "2599"]
[BlackElo "2486"]
[TimeControl "180+1"]
[EndTime "15:28:27 PDT"]
[Termination "Game drawn - insufficient material"]

1. d4 {[%clk 0:03:00.9]} 1... d5 {[%clk 0:02:59.8]} 2. c4 {[%clk 0:02:59.4]}
2... c6 {[%clk 0:02:59.9]} 3. Nc3 {[%clk 0:02:57.5]} 3... Nf6 {[%clk 0:02:59.8]}
4. cxd5 {[%clk 0:02:57.9]} 4... cxd5 {[%clk 0:02:58.5]} 5. Bf4 {[%clk
0:02:58.4]} 5... Nc6 {[%clk 0:02:57.3]} 6. e3 {[%clk 0:02:58.3]} 6... Bf5 {[%clk
0:02:56.6]} 7. Rc1 {[%clk 0:02:57.8]} 7... a6 {[%clk 0:02:41.6]} 8. Nf3 {[%clk
0:02:56.4]} 8... e6 {[%clk 0:02:26.4]} 9. Qb3 {[%clk 0:02:54.4]} 9... Ra7 {[%clk
0:01:45.7]} 10. Be2 {[%clk 0:02:40.9]} 10... Bd6 {[%clk 0:01:44.9]} 11. Bg5
{[%clk 0:02:18.8]} 11... h6 {[%clk 0:01:39.4]} 12. Bh4 {[%clk 0:02:18]} 12...
O-O {[%clk 0:01:39.4]} 13. O-O {[%clk 0:02:17.5]} 13... Na5 {[%clk 0:01:31.7]}
14. Qd1 {[%clk 0:02:06.6]} 14... b5 {[%clk 0:01:26]} 15. Ne5 {[%clk 0:01:57.4]}
15... Rc7 {[%clk 0:01:19.4]} 16. Nd3 {[%clk 0:01:21.7]} 16... Nc4 {[%clk
0:01:12]} 17. b3 {[%clk 0:01:17.2]} 17... Nb6 {[%clk 0:01:01.1]} 18. Bg3 {[%clk
0:01:16.7]} 18... Bxg3 {[%clk 0:00:51.3]} 19. hxg3 {[%clk 0:01:14.7]} 19... Bxd3
{[%clk 0:00:46.6]} 20. Bxd3 {[%clk 0:01:11.4]} 20... Qd6 {[%clk 0:00:46.8]} 21.
Nb1 {[%clk 0:00:38.3]} 21... Rfc8 {[%clk 0:00:46]} 22. Qd2 {[%clk 0:00:38.6]}
22... Ne4 {[%clk 0:00:39.7]} 23. Bxe4 {[%clk 0:00:33.5]} 23... dxe4 {[%clk
0:00:40.6]} 24. Rxc7 {[%clk 0:00:30.3]} 24... Qxc7 {[%clk 0:00:38.5]} 25. Qe2
{[%clk 0:00:30.3]} 25... Nd5 {[%clk 0:00:36.1]} 26. Qg4 {[%clk 0:00:28]} 26...
f5 {[%clk 0:00:35.3]} 27. Qg6 {[%clk 0:00:27.3]} 27... Qf7 {[%clk 0:00:32.1]}
28. Qxf7+ {[%clk 0:00:27.6]} 28... Kxf7 {[%clk 0:00:33]} 29. a4 {[%clk
0:00:27.5]} 29... b4 {[%clk 0:00:24.7]} 30. Nd2 {[%clk 0:00:27.5]} 30... Rc2
{[%clk 0:00:22.3]} 31. Nc4 {[%clk 0:00:26.5]} 31... g5 {[%clk 0:00:16.2]} 32. f3
{[%clk 0:00:21.7]} 32... exf3 {[%clk 0:00:13.1]} 33. gxf3 {[%clk 0:00:22.6]}
33... Nc3 {[%clk 0:00:09.3]} 34. Re1 {[%clk 0:00:19.7]} 34... Ne2+ {[%clk
0:00:09.3]} 35. Kf1 {[%clk 0:00:11]} 35... Nxg3+ {[%clk 0:00:09.3]} 36. Kg1
{[%clk 0:00:11.9]} 36... Ne2+ {[%clk 0:00:08.6]} 37. Kf1 {[%clk 0:00:11.6]}
37... Nc3 {[%clk 0:00:08.3]} 38. e4 {[%clk 0:00:11.2]} 38... fxe4 {[%clk
0:00:06.3]} 39. fxe4 {[%clk 0:00:12.1]} 39... g4 {[%clk 0:00:06.8]} 40. Kg1
{[%clk 0:00:11.1]} 40... Ne2+ {[%clk 0:00:04.6]} 41. Kf1 {[%clk 0:00:10.9]}
41... Nf4 {[%clk 0:00:04.5]} 42. Ne5+ {[%clk 0:00:10.2]} 42... Kf6 {[%clk
0:00:03.9]} 43. Nxg4+ {[%clk 0:00:11]} 43... Kg5 {[%clk 0:00:04.5]} 44. Ne3
{[%clk 0:00:10.8]} 44... Rc3 {[%clk 0:00:03.7]} 45. d5 {[%clk 0:00:09.7]} 45...
exd5 {[%clk 0:00:03.3]} 46. Nxd5 {[%clk 0:00:08.8]} 46... Nxd5 {[%clk
0:00:02.8]} 47. exd5 {[%clk 0:00:09.7]} 47... Rxb3 {[%clk 0:00:03.2]} 48. Rd1
{[%clk 0:00:10.3]} 48... Rc3 {[%clk 0:00:03.5]} 49. d6 {[%clk 0:00:10.5]} 49...
Rc8 {[%clk 0:00:04.1]} 50. d7 {[%clk 0:00:11.4]} 50... Rd8 {[%clk 0:00:04.6]}
51. Rd6 {[%clk 0:00:10.5]} 51... a5 {[%clk 0:00:04]} 52. Rd5+ {[%clk 0:00:11]}
52... Kf4 {[%clk 0:00:04.4]} 53. Rxa5 {[%clk 0:00:11.9]} 53... Rxd7 {[%clk
0:00:04.7]} 54. Rb5 {[%clk 0:00:12.8]} 54... Rd4 {[%clk 0:00:04.9]} 55. a5
{[%clk 0:00:13.4]} 55... Ke3 {[%clk 0:00:04.6]} 56. a6 {[%clk 0:00:13.7]} 56...
Rd6 {[%clk 0:00:03]} 57. Ra5 {[%clk 0:00:11.9]} 57... Rd8 {[%clk 0:00:02.6]} 58.
a7 {[%clk 0:00:12]} 58... Ra8 {[%clk 0:00:02.6]} 59. Rb5 {[%clk 0:00:12.6]}
59... Kd3 {[%clk 0:00:03]} 60. Rxb4 {[%clk 0:00:12.9]} 60... Rxa7 {[%clk
0:00:03.6]} 61. Rb6 {[%clk 0:00:13.4]} 61... Rh7 {[%clk 0:00:04.1]} 62. Kg2
{[%clk 0:00:13.6]} 62... h5 {[%clk 0:00:04.7]} 63. Kh3 {[%clk 0:00:13.9]} 63...
h4 {[%clk 0:00:05.3]} 64. Rb4 {[%clk 0:00:13.9]} 64... Rh6 {[%clk 0:00:05.2]}
65. Rxh4 {[%clk 0:00:14.8]} 65... Rxh4+ {[%clk 0:00:05.4]} 66. Kxh4 {[%clk
0:00:15.5]} 1/2-1/2

[Event "Late-Titled-Tuesday-Blitz-August-29-2023"]
[Site "Chess.com"]
[Date "2023.08.29"]
[Round "8"]
[White "Zhigalko_Sergei"]
[Black "Athanasios2"]
[Result "1-0"]
[WhiteElo "2925"]
[BlackElo "2727"]
[TimeControl "180+1"]
[EndTime "15:28:29 PDT"]
[Termination "Zhigalko_Sergei won by resignation"]

1. e4 {[%clk 0:03:00.9]} 1... c5 {[%clk 0:03:00.2]} 2. Nf3 {[%clk 0:03:00.7]}
2... d6 {[%clk 0:03:00.6]} 3. d4 {[%clk 0:03:00.8]} 3... cxd4 {[%clk 0:03:01.5]}
4. Qxd4 {[%clk 0:03:01.5]} 4... Nc6 {[%clk 0:03:01.6]} 5. Bb5 {[%clk 0:03:01.3]}
5... Bd7 {[%clk 0:03:01.9]} 6. Bxc6 {[%clk 0:03:01.7]} 6... Bxc6 {[%clk
0:03:02.8]} 7. Nc3 {[%clk 0:03:01.2]} 7... Nf6 {[%clk 0:03:02.6]} 8. Bg5 {[%clk
0:03:01.2]} 8... e6 {[%clk 0:03:02.3]} 9. O-O-O {[%clk 0:03:01]} 9... Be7 {[%clk
0:03:02.2]} 10. Rhe1 {[%clk 0:03:01.1]} 10... O-O {[%clk 0:03:02]} 11. Kb1
{[%clk 0:03:01.4]} 11... a6 {[%clk 0:03:01]} 12. Qd2 {[%clk 0:02:39.8]} 12...
Qc7 {[%clk 0:02:53.1]} 13. Nd4 {[%clk 0:02:36.2]} 13... Rfd8 {[%clk 0:02:42.1]}
14. f3 {[%clk 0:02:35.4]} 14... Rac8 {[%clk 0:02:40.9]} 15. g4 {[%clk
0:02:35.3]} 15... b5 {[%clk 0:02:38]} 16. Nce2 {[%clk 0:02:35.2]} 16... Bb7
{[%clk 0:02:23.6]} 17. Ng3 {[%clk 0:02:35.1]} 17... Ne8 {[%clk 0:01:59.3]} 18.
h4 {[%clk 0:02:33.1]} 18... Qd7 {[%clk 0:01:44.8]} 19. Bxe7 {[%clk 0:02:26.4]}
19... Qxe7 {[%clk 0:01:44.7]} 20. g5 {[%clk 0:02:27.3]} 20... Rc5 {[%clk
0:01:30.8]} 21. Nb3 {[%clk 0:02:20.6]} 21... Rc7 {[%clk 0:01:29.8]} 22. h5
{[%clk 0:02:21]} 22... Rdc8 {[%clk 0:01:29.6]} 23. c3 {[%clk 0:02:10.5]} 23...
d5 {[%clk 0:01:17.8]} 24. e5 {[%clk 0:01:49.1]} 24... b4 {[%clk 0:01:17.5]} 25.
cxb4 {[%clk 0:01:45.9]} 25... Rc2 {[%clk 0:01:15]} 26. Qd4 {[%clk 0:00:55.2]}
26... R2c4 {[%clk 0:01:01.8]} 27. Qg1 {[%clk 0:00:38.3]} 27... Qxg5 {[%clk
0:00:53.8]} 28. a3 {[%clk 0:00:29]} 28... d4 {[%clk 0:00:37.6]} 29. Nxd4 {[%clk
0:00:22.8]} 29... h6 {[%clk 0:00:33.2]} 30. Qf2 {[%clk 0:00:16.6]} 30... Qf4
{[%clk 0:00:27.6]} 31. Nge2 {[%clk 0:00:05.7]} 31... Qxe5 {[%clk 0:00:27.7]} 32.
f4 {[%clk 0:00:04.9]} 32... Qxh5 {[%clk 0:00:21.9]} 33. Rg1 {[%clk 0:00:05]}
33... Be4+ {[%clk 0:00:21.2]} 34. Ka1 {[%clk 0:00:04.5]} 34... Bg6 {[%clk
0:00:19.8]} 35. f5 {[%clk 0:00:03.6]} 35... Bxf5 {[%clk 0:00:15.6]} 36. Nf4
{[%clk 0:00:04.2]} 36... Rc1+ {[%clk 0:00:06.1]} 37. Rxc1 {[%clk 0:00:04.1]}
37... Rxc1+ {[%clk 0:00:07]} 38. Rxc1 {[%clk 0:00:04.6]} 38... Qg5 {[%clk
0:00:07.9]} 39. Rg1 {[%clk 0:00:02.7]} 39... Qf6 {[%clk 0:00:07.9]} 40. Nh5
{[%clk 0:00:02.9]} 40... Qe5 {[%clk 0:00:08.4]} 41. Nxf5 {[%clk 0:00:03]} 41...
exf5 {[%clk 0:00:08.5]} 42. Re1 {[%clk 0:00:02.6]} 42... Qb5 {[%clk 0:00:07.9]}
43. Qe2 {[%clk 0:00:02.4]} 43... Qxe2 {[%clk 0:00:06.4]} 44. Rxe2 {[%clk
0:00:03.3]} 44... Nd6 {[%clk 0:00:07.3]} 45. a4 {[%clk 0:00:03.6]} 45... g5
{[%clk 0:00:04]} 46. Nf6+ {[%clk 0:00:03.7]} 46... Kf8 {[%clk 0:00:04.8]} 47.
Nd7+ {[%clk 0:00:02.8]} 47... Kg7 {[%clk 0:00:05.2]} 48. Rd2 {[%clk 0:00:02.7]}
48... Ne4 {[%clk 0:00:05]} 49. Rd1 {[%clk 0:00:02.2]} 49... f4 {[%clk
0:00:04.8]} 50. b5 {[%clk 0:00:02.7]} 50... axb5 {[%clk 0:00:04]} 51. axb5
{[%clk 0:00:03.6]} 51... f3 {[%clk 0:00:04.8]} 52. b6 {[%clk 0:00:04]} 52... f2
{[%clk 0:00:04.2]} 53. b7 {[%clk 0:00:04.1]} 53... Ng3 {[%clk 0:00:01.9]} 54.
b8=Q {[%clk 0:00:04.3]} 54... f1=Q {[%clk 0:00:02.8]} 55. Rxf1 {[%clk 0:00:04]}
55... Nxf1 {[%clk 0:00:03.3]} 56. Qe5+ {[%clk 0:00:03.8]} 1-0

[Event "Late-Titled-Tuesday-Blitz-August-29-2023"]
[Site "Chess.com"]
[Date "2023.08.29"]
[Round "8"]
[White "DenizSeyhanoglu1"]
[Black "Roedor"]
[Result "0-1"]
[WhiteElo "2310"]
[BlackElo "2434"]
[TimeControl "180+1"]
[EndTime "15:28:35 PDT"]
[Termination "Roedor won by resignation"]

1. e4 {[%clk 0:03:00.9]} 1... e5 {[%clk 0:02:58.5]} 2. Nf3 {[%clk 0:02:59.5]}
2... Nc6 {[%clk 0:02:57.3]} 3. Nc3 {[%clk 0:02:59]} 3... Nf6 {[%clk 0:02:52.3]}
4. Bb5 {[%clk 0:02:56.6]} 4... Nd4 {[%clk 0:02:51.9]} 5. Ba4 {[%clk 0:02:55.3]}
5... Bc5 {[%clk 0:02:50]} 6. O-O {[%clk 0:02:53.3]} 6... O-O {[%clk 0:02:49.3]}
7. d3 {[%clk 0:02:53.1]} 7... d6 {[%clk 0:02:47.4]} 8. h3 {[%clk 0:02:50.4]}
8... c6 {[%clk 0:02:41.8]} 9. Nxd4 {[%clk 0:02:49.8]} 9... Bxd4 {[%clk
0:02:41.7]} 10. Ne2 {[%clk 0:02:49.9]} 10... Bb6 {[%clk 0:02:41.6]} 11. Be3
{[%clk 0:02:49.1]} 11... d5 {[%clk 0:02:41]} 12. Ng3 {[%clk 0:02:42.3]} 12...
Be6 {[%clk 0:02:35.5]} 13. Bxb6 {[%clk 0:02:38.3]} 13... axb6 {[%clk 0:02:36.4]}
14. Bb3 {[%clk 0:02:38.9]} 14... dxe4 {[%clk 0:02:31.4]} 15. dxe4 {[%clk
0:02:34.7]} 15... Bxb3 {[%clk 0:02:29.7]} 16. axb3 {[%clk 0:02:26.7]} 16... Qc7
{[%clk 0:02:20.6]} 17. Qe2 {[%clk 0:02:21.9]} 17... g6 {[%clk 0:02:18.2]} 18.
Rfd1 {[%clk 0:02:16.7]} 18... Rfd8 {[%clk 0:02:17.9]} 19. Rxa8 {[%clk
0:02:12.5]} 19... Rxa8 {[%clk 0:02:17.3]} 20. Qd3 {[%clk 0:02:11]} 20... Kg7
{[%clk 0:02:11.9]} 21. Kf1 {[%clk 0:02:08]} 21... Ra2 {[%clk 0:02:10.6]} 22. Qc3
{[%clk 0:02:05.9]} 22... Qe7 {[%clk 0:02:09.6]} 23. b4 {[%clk 0:02:03.9]} 23...
h5 {[%clk 0:02:05.4]} 24. Qb3 {[%clk 0:02:03.6]} 24... Ra8 {[%clk 0:02:01.5]}
25. f3 {[%clk 0:02:01.6]} 25... Rd8 {[%clk 0:01:59.5]} 26. c3 {[%clk 0:01:46.2]}
26... h4 {[%clk 0:01:56.5]} 27. Ne2 {[%clk 0:01:45.5]} 27... Nh5 {[%clk
0:01:56.8]} 28. Qc2 {[%clk 0:01:40.6]} 28... Rd6 {[%clk 0:01:52.7]} 29. Ke1
{[%clk 0:01:36.4]} 29... Qd8 {[%clk 0:01:47.4]} 30. Rxd6 {[%clk 0:01:36]} 30...
Qxd6 {[%clk 0:01:48.3]} 31. Qd2 {[%clk 0:01:36.9]} 31... Qe6 {[%clk 0:01:37.4]}
32. Kf2 {[%clk 0:01:33.9]} 32... Qc4 {[%clk 0:01:30.7]} 33. Nc1 {[%clk
0:01:29.3]} 33... Ng3 {[%clk 0:01:28.6]} 34. Qd3 {[%clk 0:01:27.1]} 34... Qe6
{[%clk 0:01:22.5]} 35. Ne2 {[%clk 0:01:24.2]} 35... Nh1+ {[%clk 0:01:13.5]} 36.
Kg1 {[%clk 0:01:09.6]} 36... Ng3 {[%clk 0:01:13.1]} 37. Nxg3 {[%clk 0:01:08.7]}
37... hxg3 {[%clk 0:01:14]} 38. c4 {[%clk 0:01:00.3]} 38... Qe7 {[%clk 0:01:11]}
39. Qc3 {[%clk 0:00:54.6]} 39... Qd6 {[%clk 0:01:07.1]} 40. Qe1 {[%clk 0:00:42]}
40... Qd4+ {[%clk 0:01:05.9]} 41. Kh1 {[%clk 0:00:41.5]} 41... Qf2 {[%clk
0:01:02.2]} 42. Qc1 {[%clk 0:00:35.7]} 42... c5 {[%clk 0:00:56.5]} 43. bxc5
{[%clk 0:00:19.3]} 43... bxc5 {[%clk 0:00:57.4]} 44. b3 {[%clk 0:00:19.8]} 44...
b6 {[%clk 0:00:56.5]} 45. Qd1 {[%clk 0:00:18.2]} 45... Kh6 {[%clk 0:00:49.5]}
46. Qc1+ {[%clk 0:00:17]} 46... Kh5 {[%clk 0:00:49]} 47. Qd1 {[%clk 0:00:15.9]}
47... Kh4 {[%clk 0:00:44]} 48. Qd8+ {[%clk 0:00:15.2]} 48... Kh5 {[%clk
0:00:32.5]} 49. Qh8+ {[%clk 0:00:15.1]} 49... Kg5 {[%clk 0:00:32.7]} 50. Qxe5+
{[%clk 0:00:15.6]} 50... Kh6 {[%clk 0:00:33.3]} 51. Qf4+ {[%clk 0:00:13.2]}
51... Kg7 {[%clk 0:00:33.4]} 52. Qe5+ {[%clk 0:00:12.3]} 52... Kh7 {[%clk
0:00:32.3]} 53. Qa1 {[%clk 0:00:11]} 53... Qc2 {[%clk 0:00:31.4]} 54. Qe1 {[%clk
0:00:10.2]} 54... Qxb3 {[%clk 0:00:28.4]} 55. Qxg3 {[%clk 0:00:09.8]} 55... Qxc4
{[%clk 0:00:29]} 56. Qc7 {[%clk 0:00:09.8]} 56... b5 {[%clk 0:00:27.7]} 57. e5
{[%clk 0:00:09]} 57... b4 {[%clk 0:00:27.7]} 58. e6 {[%clk 0:00:07.9]} 58...
Qxe6 {[%clk 0:00:24.8]} 59. Qxc5 {[%clk 0:00:08]} 59... b3 {[%clk 0:00:24.3]}
60. Qb4 {[%clk 0:00:07.9]} 60... Qe3 {[%clk 0:00:15.4]} 61. Qb7 {[%clk
0:00:03.4]} 61... Kg7 {[%clk 0:00:12.2]} 62. Kh2 {[%clk 0:00:02.3]} 62... Qe5+
{[%clk 0:00:12.1]} 63. Kh1 {[%clk 0:00:02.4]} 63... b2 {[%clk 0:00:12.4]} 64. h4
{[%clk 0:00:02.3]} 64... Qe1+ {[%clk 0:00:12.5]} 65. Kh2 {[%clk 0:00:02.3]}
65... b1=Q {[%clk 0:00:13]} 0-1

[Event "Late-Titled-Tuesday-Blitz-August-29-2023"]
[Site "Chess.com"]
[Date "2023.08.29"]
[Round "8"]
[White "Onthequiet"]
[Black "NotFischer"]
[Result "1-0"]
[WhiteElo "2364"]
[BlackElo "2255"]
[TimeControl "180+1"]
[EndTime "15:28:35 PDT"]
[Termination "Onthequiet won by checkmate"]

1. d4 {[%clk 0:02:40.5]} 1... Nf6 {[%clk 0:02:59.4]} 2. Nf3 {[%clk 0:02:40.1]}
2... g6 {[%clk 0:02:58.9]} 3. Bg5 {[%clk 0:02:39.7]} 3... Bg7 {[%clk 0:02:58.4]}
4. Nbd2 {[%clk 0:02:39.4]} 4... d6 {[%clk 0:02:55.2]} 5. c3 {[%clk 0:02:39.3]}
5... Nbd7 {[%clk 0:02:47.8]} 6. e4 {[%clk 0:02:38.7]} 6... O-O {[%clk
0:02:45.7]} 7. Be2 {[%clk 0:02:37.7]} 7... e5 {[%clk 0:02:42.4]} 8. dxe5 {[%clk
0:02:37]} 8... dxe5 {[%clk 0:02:24]} 9. O-O {[%clk 0:02:36.7]} 9... Re8 {[%clk
0:02:22.5]} 10. Re1 {[%clk 0:02:36.3]} 10... h6 {[%clk 0:02:18.5]} 11. Bh4
{[%clk 0:02:34.7]} 11... Nc5 {[%clk 0:02:02.5]} 12. Qc2 {[%clk 0:02:31.3]} 12...
c6 {[%clk 0:01:46.4]} 13. h3 {[%clk 0:02:28.7]} 13... Qc7 {[%clk 0:01:42.1]} 14.
Nh2 {[%clk 0:02:20.3]} 14... Be6 {[%clk 0:01:20.1]} 15. Bxf6 {[%clk 0:01:57.3]}
15... Bxf6 {[%clk 0:01:19.4]} 16. Ng4 {[%clk 0:01:56.4]} 16... Bg7 {[%clk
0:01:18]} 17. Nf3 {[%clk 0:01:49.4]} 17... f5 {[%clk 0:01:07.1]} 18. exf5 {[%clk
0:01:39.7]} 18... gxf5 {[%clk 0:01:08]} 19. Ne3 {[%clk 0:01:38.3]} 19... Qf7
{[%clk 0:01:05.8]} 20. b3 {[%clk 0:01:35.4]} 20... Rad8 {[%clk 0:00:52]} 21. Bc4
{[%clk 0:01:34.5]} 21... Ne4 {[%clk 0:00:44.6]} 22. Rad1 {[%clk 0:01:24.6]}
22... Nd6 {[%clk 0:00:30.3]} 23. Rxd6 {[%clk 0:00:46.4]} 23... Rxd6 {[%clk
0:00:26]} 24. Nxf5 {[%clk 0:00:46.8]} 24... Rdd8 {[%clk 0:00:15.4]} 25. Nxg7
{[%clk 0:00:44]} 25... Kxg7 {[%clk 0:00:12.7]} 26. Nxe5 {[%clk 0:00:43.2]} 26...
Qf5 {[%clk 0:00:08.9]} 27. Bd3 {[%clk 0:00:38]} 27... Qf6 {[%clk 0:00:07.1]} 28.
Qc1 {[%clk 0:00:25.3]} 28... Rf8 {[%clk 0:00:06.3]} 29. Qe3 {[%clk 0:00:18.8]}
29... Bd5 {[%clk 0:00:06.6]} 30. g3 {[%clk 0:00:11.4]} 30... Rde8 {[%clk
0:00:06.4]} 31. f4 {[%clk 0:00:11.2]} 31... Kh8 {[%clk 0:00:03.5]} 32. c4 {[%clk
0:00:11.2]} 32... Bf7 {[%clk 0:00:02.9]} 33. Qe4 {[%clk 0:00:10.9]} 33... Bg8
{[%clk 0:00:02.5]} 34. h4 {[%clk 0:00:10.1]} 34... Kg7 {[%clk 0:00:03]} 35. Kh2
{[%clk 0:00:09.9]} 35... Bh7 {[%clk 0:00:03]} 36. Qd4 {[%clk 0:00:09.1]} 36...
Rxe5 {[%clk 0:00:02.8]} 37. Rxe5 {[%clk 0:00:07.9]} 37... Bxd3 {[%clk
0:00:02.6]} 38. Qxd3 {[%clk 0:00:08.3]} 38... Rf7 {[%clk 0:00:02.9]} 39. Qe4
{[%clk 0:00:07.8]} 39... Qg6 {[%clk 0:00:02.4]} 40. Re6 {[%clk 0:00:07]} 40...
Qxe4 {[%clk 0:00:02.4]} 41. Rxe4 {[%clk 0:00:07.6]} 41... Kf6 {[%clk 0:00:03]}
42. Kh3 {[%clk 0:00:07.7]} 42... Rd7 {[%clk 0:00:03.6]} 43. Re5 {[%clk 0:00:08]}
43... Rd2 {[%clk 0:00:04]} 44. b4 {[%clk 0:00:08.3]} 44... Rxa2 {[%clk 0:00:04]}
45. b5 {[%clk 0:00:09]} 45... cxb5 {[%clk 0:00:03.9]} 46. Rxb5 {[%clk
0:00:07.9]} 46... b6 {[%clk 0:00:04.3]} 47. Rh5 {[%clk 0:00:08.3]} 47... Rc2
{[%clk 0:00:03.9]} 48. Rxh6+ {[%clk 0:00:08.3]} 48... Kg7 {[%clk 0:00:04.8]} 49.
Rd6 {[%clk 0:00:07.6]} 49... Rxc4 {[%clk 0:00:04.8]} 50. Rd7+ {[%clk 0:00:08.1]}
50... Kf6 {[%clk 0:00:04.7]} 51. Rxa7 {[%clk 0:00:08.7]} 51... b5 {[%clk
0:00:04.9]} 52. Rb7 {[%clk 0:00:09.6]} 52... b4 {[%clk 0:00:05.3]} 53. h5 {[%clk
0:00:09.8]} 53... Re4 {[%clk 0:00:03]} 54. Kg4 {[%clk 0:00:09.8]} 54... Rc4
{[%clk 0:00:02.3]} 55. Rb5 {[%clk 0:00:09.8]} 55... Kg7 {[%clk 0:00:02.1]} 56.
Rb6 {[%clk 0:00:09.7]} 56... Rd4 {[%clk 0:00:02.1]} 57. Kg5 {[%clk 0:00:09.4]}
57... Rd3 {[%clk 0:00:01.5]} 58. g4 {[%clk 0:00:09.2]} 58... b3 {[%clk
0:00:01.6]} 59. f5 {[%clk 0:00:09.6]} 59... Rg3 {[%clk 0:00:01.8]} 60. h6+
{[%clk 0:00:09.5]} 60... Kh7 {[%clk 0:00:02.1]} 61. Rb7+ {[%clk 0:00:08.4]}
61... Kh8 {[%clk 0:00:02.7]} 62. Kh5 {[%clk 0:00:08.7]} 62... Kg8 {[%clk
0:00:02.3]} 63. g5 {[%clk 0:00:08.1]} 63... Rh3+ {[%clk 0:00:02.7]} 64. Kg6
{[%clk 0:00:08.1]} 64... Kf8 {[%clk 0:00:01.7]} 65. f6 {[%clk 0:00:07.2]} 65...
b2 {[%clk 0:00:01.4]} 66. Rb8# {[%clk 0:00:05.8]} 1-0